bitfinex/quotes_ETHUSD_20250604
["timestamp","ask_amount","ask_price","bid_price","bid_amount"]
[1749020736433,1.4787,2628.5,2627.8,12.79915109]
[1749020736600,1.4787,2628.5,2627.8,2.79915109]
[1749020736797,1.4787,2628.8,2628.0,18.05916809]
[1749020737001,1.4787,2628.8,2628.1,7.749]
[1749020737201,0.55,2628.7,2628.2,10.0]
[1749020737401,0.55,2628.7,2628.1,7.749]
[1749020738622,1.03478511,2628.7,2628.1,7.749]
[1749020738808,1.03478511,2628.7,2628.2,7.747]
[1749020739701,0.02,2628.9,2628.3,8.0507]
[1749020739901,0.02,2628.9,2628.8,20.84985109]
[1749020740127,0.02,2628.9,2628.8,30.64085109]
[1749020740630,0.02,2628.9,2628.8,27.8417]
[1749020740939,0.02,2628.9,2628.8,30.64085109]
[1749020751556,0.02,2628.9,2628.8,31.6979355]
[1749020753477,0.02,2628.9,2628.8,31.17339238]
[1749020754794,0.02,2628.9,2628.8,30.64085109]
[1749020759001,0.02,2628.9,2628.8,33.44000218]
[1749020759300,0.02,2629.9,2629.1,8.0507]
[1749020759474,0.02,2629.9,2629.8,10.0]
[1749020759671,0.02,2629.9,2629.8,11.598]
[1749020760112,0.02,2629.9,2629.8,19.598]
[1749020762315,0.55,2629.8,2629.7,6.183]
[1749020762602,0.55,2629.8,2629.7,7.781]
[1749020762805,1.444,2629.9,2629.7,7.781]
[1749020763168,1.444,2629.9,2629.8,3.534399]
[1749020764184,1.444,2629.9,2629.8,3.319535]
[1749020764375,1.444,2629.9,2629.8,2.260707]
[1749020765482,1.444,2629.9,2629.7,7.781]
[1749020767994,1.444,2629.9,2629.8,6.182]
[1749020769111,1.444,2629.9,2629.8,1.598]
[1749020769295,0.55,2629.8,2628.9,0.0394]
[1749020769497,1.4194,2629.5,2629.1,7.903708]
[1749020769664,1.4194,2629.5,2629.3,8.0]
[1749020769868,1.9694,2629.5,2629.4,14.185]
[1749020770094,6.6394,2629.5,2629.4,14.185]
[1749020770425,0.55,2629.4,2629.0,1.598]
[1749020770566,6.0346,2629.3,2629.1,6.186]
[1749020770767,6.0346,2629.3,2629.2,1.598]
[1749020771114,2.0412,2629.1,2629.0,8.203]
[1749020771269,2.0412,2629.1,2629.0,1.598]
[1749020771270,5.51147109,2629.1,2629.0,1.598]
[1749020771464,2.71232,2629.1,2629.0,1.598]
[1749020774196,1.22112,2629.1,2629.0,1.598]
[1749020775027,2.66102,2629.1,2629.0,1.598]
[1749020779230,7.33102,2629.1,2629.0,1.598]
[1749020780483,6.78102,2629.1,2629.0,1.598]
[1749020780689,6.1099,2629.1,2629.0,1.598]
[1749020780993,6.6599,2629.1,2629.0,1.598]
[1749020781201,5.22,2629.1,2629.0,1.598]
[1749020781786,4.67,2629.1,2629.0,1.598]
[1749020784040,0.55,2629.0,2628.6,10.0]
[1749020784200,0.55,2629.0,2628.7,7.789]
[1749020784401,0.55,2629.0,2628.6,14.649883]
[1749020784623,1.4486,2628.9,2628.7,7.789]
[1749020785239,0.55,2628.8,2628.3,8.0]
[1749020785534,1.9974,2628.6,2628.4,7.793]
[1749020785734,1.9974,2628.6,2628.4,1.598]
[1749020785896,1.9974,2628.6,2628.5,6.195]
[1749020786638,1.9974,2628.6,2628.5,1.598]
[1749020786835,1.9974,2628.6,2628.3,8.206]
[1749020787037,0.55,2628.4,2628.3,8.206]
[1749020787238,0.55,2628.4,2628.3,9.804]
[1749020787696,0.55,2628.4,2628.3,16.0]
[1749020788539,0.55,2628.5,2628.3,16.0]
[1749020789007,1.4474,2628.6,2628.3,16.0]
[1749020794946,4.67,2629.1,2628.4,10.0]
[1749020795162,3.25102131,2630.1,2628.5,10.0]
[1749020795163,0.55,2628.9,2628.5,10.0]
[1749020795457,0.55,2628.9,2628.3,16.0]
[1749020796848,0.55,2628.9,2628.3,9.804]
[1749020797064,1.3505,2628.8,2628.4,6.192]
[1749020799963,0.55,2628.6,2628.4,6.192]
[1749020800562,4.67,2628.7,2628.5,13.205298]
[1749020800762,4.67,2628.7,2628.4,6.192]
[1749020804353,4.67,2628.7,2628.6,10.0]
[1749020804660,4.67,2628.7,2628.4,16.192]
[1749020804868,4.67,2628.7,2628.6,10.0]
[1749020808080,4.67,2628.9,2628.6,10.0]
[1749020808374,4.67,2628.9,2628.5,18.312135]
[1749020808541,4.67,2628.9,2628.5,8.312135]
[1749020809474,4.67,2629.0,2628.5,2.79796373]
[1749020809638,4.67,2629.0,2628.6,10.0]
[1749020810965,4.67,2629.0,2628.7,6.188]
[1749020813774,4.67,2629.0,2628.8,1.605]
[1749020814681,0.9661939,2629.0,2628.4,10.0]
[1749020814870,0.9661939,2629.0,2628.5,15.791]
[1749020814871,1.3788,2628.9,2628.5,15.791]
[1749020819474,1.3788,2628.9,2628.5,23.997]
[1749020820704,4.67,2628.8,2628.5,23.997]
[1749020827879,4.67,2628.8,2628.6,2.79796373]
[1749020828081,4.67,2628.8,2628.7,10.4492]
[1749020828495,0.02,2629.9,2628.7,10.4492]
[1749020828496,4.67,2629.2,2628.7,10.4492]
[1749020828687,4.67,2629.2,2629.1,2.79796373]
[1749020828895,4.67,2629.7,2629.5,8.0]
[1749020829060,4.67,2629.7,2629.6,14.185]
[1749020829394,0.02,2629.9,2629.6,14.185]
[1749020829604,0.02,2629.9,2629.7,9.597]
[1749020829959,0.02,2629.9,2629.7,4.39496373]
[1749020830158,0.02,2629.9,2629.8,15.813283]
[1749020833997,0.02,2629.9,2629.8,14.294118]
[1749020836903,0.02,2629.9,2629.8,14.434618]
[1749020842873,0.02,2629.9,2629.8,17.23258173]
[1749020845183,0.02,2629.9,2629.8,20.03054546]
[1749020845483,0.02,2629.9,2629.8,17.23258173]
[1749020845990,0.02,2630.9,2630.0,0.1405]
[1749020846190,0.02,2630.9,2629.9,8.0]
[1749020846191,0.02,2630.9,2630.8,20.93846373]
[1749020846372,0.02,2630.9,2630.8,28.71546373]
[1749020850607,0.02,2630.9,2630.8,12.17993522]
[1749020850807,0.02,2630.9,2630.8,19.95493522]
[1749020851194,0.02,2630.9,2630.8,19.95793522]
[1749020852105,0.02,2630.9,2630.8,12.17993522]
[1749020852406,0.02,2630.9,2630.8,13.77593522]
[1749020852710,0.02,2630.9,2630.8,19.95693522]
[1749020855310,0.02,2630.9,2630.8,19.95993522]
[1749020862961,0.02,2630.9,2630.8,17.16197149]
[1749020863131,0.02,2630.9,2630.8,19.95993522]
[1749020863751,0.02,2630.9,2630.8,11.95826157]
[1749020863950,0.02,2630.9,2630.8,20.57796373]
[1749020865654,0.02,2630.9,2630.8,28.57796373]
[1749020869639,0.02,2630.9,2630.8,36.77496373]
[1749020871170,0.02,2630.9,2630.8,23.70485339]
[1749020872237,0.02,2630.9,2630.8,29.87885339]
[1749020873573,0.02,2630.9,2630.8,29.87585339]
[1749020879896,0.02,2630.9,2630.8,10.99496373]
[1749020880073,0.02,2630.9,2630.8,28.75096373]
[1749020880397,0.02,2630.9,2630.8,19.40238273]
[1749020880640,1.4571,2630.9,2630.8,19.40238273]
[1749020880759,1.4571,2630.9,2630.8,16.02145973]
[1749020880954,1.4571,2630.9,2630.8,9.787]
[1749020881408,1.4571,2630.9,2630.8,15.963]
[1749020881959,1.4571,2630.9,2630.8,28.76096373]
[1749020882400,1.4189,2630.9,2630.8,36.76096373]
[1749020883607,4.67,2631.5,2631.1,8.0]
[1749020883812,4.67,2631.6,2631.3,12.710473]
[1749020883962,0.02,2631.9,2631.4,1.59]
[1749020884965,0.02,2631.9,2631.5,6.184]
[1749020885380,1.5192,2631.8,2631.5,6.184]
[1749020886185,1.5192,2631.8,2631.6,7.772]
[1749020886516,1.5192,2631.6,2631.1,5.282227]
[1749020886685,1.5192,2631.5,2631.2,10.56896373]
[1749020886865,1.5192,2631.5,2631.4,10.0]
[1749020887310,1.5192,2631.5,2631.3,7.133552]
[1749020887563,1.5192,2631.5,2631.4,10.0]
[1749020887996,1.5192,2631.5,2631.2,10.56896373]
[1749020888417,1.5192,2631.5,2631.0,10.79796373]
[1749020888733,1.5192,2631.5,2631.1,7.77]
[1749020888933,1.5192,2631.5,2631.2,10.0]
[1749020889131,1.5192,2631.5,2631.2,2.79796373]
[1749020889505,1.5192,2631.5,2631.2,8.0]
[1749020890435,1.5192,2631.5,2631.1,7.77]
[1749020890436,1.5192,2631.5,2630.9,8.0]
[1749020890655,1.5192,2631.5,2631.3,7.769]
[1749020891004,1.5192,2631.5,2631.0,10.0]
[1749020891304,5.22,2631.4,2630.8,8.197]
[1749020891505,1.471,2631.2,2630.9,7.77]
[1749020891698,1.471,2631.2,2630.9,15.77]
[1749020892139,1.471,2631.2,2630.9,9.59]
[1749020892438,1.471,2631.2,2630.9,1.59]
[1749020892602,0.55,2631.1,2631.0,7.771]
[1749020892933,2.0304,2631.1,2631.0,7.771]
[1749020893140,2.28564,2631.1,2631.0,7.771]
[1749020893297,2.28564,2631.1,2631.0,7.77]
[1749020893498,2.28564,2631.1,2630.8,8.197]
[1749020893697,2.063,2630.9,2630.8,8.197]
[1749020893902,2.063,2630.9,2630.8,15.97]
[1749020893903,6.733,2630.9,2630.8,15.97]
[1749020894097,7.431824,2630.9,2630.8,15.97]
[1749020894297,0.55,2630.8,2630.7,8.197]
[1749020894504,0.55,2630.8,2630.7,9.787]
[1749020894505,2.0627,2630.8,2630.7,9.787]
[1749020895514,2.0627,2630.8,2630.7,15.97]
[1749020896144,2.0627,2630.8,2630.7,9.787]
[1749020896350,2.0627,2630.8,2629.1,0.81148936]
[1749020896351,1.956,2630.7,2630.6,8.198]
[1749020896523,1.406,2630.5,2630.3,8.198]
[1749020896849,0.55,2630.7,2630.4,7.775]
[1749020897019,0.55,2630.7,2630.4,1.59]
[1749020897234,1.5346,2630.6,2630.5,6.187]
[1749020897543,2.0846,2630.6,2630.5,6.187]
[1749020899519,1.5346,2630.6,2630.5,6.187]
[1749020900062,1.5346,2630.6,2630.5,12.02857]
[1749020900349,1.5346,2630.6,2630.5,9.81139]
[1749020900570,1.5346,2630.6,2630.4,13.058523]
[1749020900712,2.0846,2630.6,2630.5,7.789]
[1749020900912,2.29306,2630.6,2630.5,7.789]
[1749020902627,2.29306,2630.6,2630.5,7.787]
[1749020905073,2.28926,2630.6,2630.5,7.786]
[1749020905603,2.28926,2630.6,2630.3,8.198]
[1749020905776,2.28926,2630.6,2630.4,7.785]
[1749020906304,6.95926,2630.6,2630.4,7.785]
[1749020906907,6.95926,2630.6,2630.4,1.591]
[1749020906908,2.748326,2630.5,2630.4,1.591]
[1749020907104,2.748326,2630.5,2630.4,7.784]
[1749020907777,2.748326,2630.5,2630.3,8.198]
[1749020907964,2.0524,2630.5,2630.4,7.783]
[1749020910261,2.0524,2630.5,2630.4,7.781]
[1749020911908,2.0524,2630.5,2630.3,8.198]
[1749020912099,2.0524,2630.5,2630.4,7.792]
[1749020912268,6.7224,2630.5,2630.4,7.792]
[1749020912471,6.7224,2630.5,2630.3,8.198]
[1749020912717,6.7224,2630.5,2630.4,7.791]
[1749020913212,6.7224,2630.5,2630.3,8.198]
[1749020913372,6.7224,2630.5,2630.4,7.791]
[1749020914529,6.7224,2630.5,2630.4,7.79]
[1749020919612,6.7224,2630.5,2630.4,9.804]
[1749020920778,6.7224,2630.5,2630.4,15.987]
[1749020922341,6.7224,2630.5,2630.4,9.804]
[1749020922506,6.7224,2630.5,2630.4,15.985]
[1749020923049,4.67,2630.5,2630.4,15.985]
[1749020924043,4.67,2630.6,2630.4,15.985]
[1749020927541,5.89541,2630.6,2630.5,7.782]
[1749020927741,5.89541,2630.6,2630.5,7.784]
[1749020927937,5.89541,2630.6,2630.5,7.783]
[1749020928654,5.89541,2630.6,2630.4,8.201]
[1749020928841,5.89541,2630.6,2630.5,7.783]
[1749020931234,5.22,2630.6,2630.5,7.783]
[1749020933865,4.67,2630.6,2630.5,7.783]
[1749020934076,4.67,2630.6,2630.5,14.787943]
[1749020934355,4.67,2630.6,2630.5,12.866615]
[1749020934818,4.67,2630.6,2630.5,7.783]
[1749020935938,4.67,2630.9,2630.5,10.37869046]
[1749020936134,4.67,2630.9,2630.6,2.59569046]
[1749020936464,4.67,2630.9,2630.5,7.783]
[1749020937323,2.0266,2630.8,2630.6,7.777]
[1749020939755,2.0266,2630.8,2630.7,8.201]
[1749020939955,2.7199774,2630.8,2630.7,8.201]
[1749020940663,2.7199774,2630.8,2630.7,14.372]
[1749020941862,7.3899774,2630.8,2630.7,14.372]
[1749020942363,2.7199774,2630.8,2630.7,14.372]
[1749020942556,2.0266,2630.8,2630.7,14.372]
[1749020945461,2.0266,2630.8,2630.7,15.96]
[1749020945844,2.0266,2630.8,2630.7,9.793]
[1749020946065,2.0266,2630.8,2630.7,15.96]
[1749020947456,2.0266,2630.8,2630.7,15.959]
[1749020947769,2.2529774,2630.8,2630.7,15.959]
[1749020947968,1.71114,2631.1,2630.7,15.959]
[1749020948170,1.4559,2631.4,2630.7,15.959]
[1749020948339,1.4559,2631.4,2630.9,10.0]
[1749020948535,0.55,2631.3,2630.9,10.0]
[1749020950059,0.55,2631.5,2630.9,10.0]
[1749020951677,0.55,2631.3,2631.0,7.76]
[1749020953876,4.67,2631.2,2631.0,7.76]
[1749020959097,4.67,2631.2,2631.0,1.592]
[1749020959251,4.67,2631.2,2631.1,6.165]
[1749020959797,5.22,2631.3,2631.1,6.165]
[1749020960598,5.22,2631.3,2631.2,9.79]
[1749020961881,5.22,2631.3,2631.2,15.953]
[1749020962201,7.40965,2631.3,2631.2,8.199]
[1749020962409,10.20761373,2631.3,2631.2,9.79]
[1749020962572,0.55,2630.9,2629.7,2.79796373]
[1749020962763,0.55,2630.6,2630.4,8.199]
[1749020962958,5.22,2630.5,2630.4,8.199]
[1749020963164,5.22,2630.5,2630.4,15.957]
[1749020964257,5.22,2630.5,2630.4,9.79]
[1749020964656,5.22,2630.5,2630.4,8.199]
[1749020964907,5.89901,2630.5,2630.4,15.958]
[1749020966612,4.67,2630.5,2630.4,15.958]
[1749020966773,5.22,2630.5,2630.4,9.791]
[1749020966977,5.22,2630.5,2630.4,15.957]
[1749020970088,4.67,2630.5,2630.4,15.957]
[1749020972499,4.67,2630.5,2630.4,8.199]
[1749020972703,5.22,2630.5,2630.4,15.948]
[1749020975369,4.67,2630.5,2630.4,15.948]
[1749020977828,4.67,2630.5,2630.4,25.205058]
[1749020978597,4.67,2630.5,2630.4,33.205058]
[1749020978934,4.67,2630.5,2630.4,23.948]
[1749020979931,4.67,2630.5,2630.4,27.261515]
[1749020980426,4.67,2630.8,2630.5,8.0]
[1749020981722,4.67,2630.8,2630.4,15.948]
[1749020981925,4.67,2630.8,2630.6,10.0]
[1749020982132,4.67,2630.8,2630.6,3.83925]
[1749020982285,4.67,2630.8,2630.6,2.967798]
[1749020984203,4.67,2630.8,2630.5,10.0]
[1749020984409,4.67,2630.8,2630.6,6.16]
[1749020984909,4.67,2630.8,2630.6,10.0]
[1749020985106,4.67,2630.8,2630.7,6.16]
[1749020985499,4.67,2630.8,2630.5,10.0]
[1749020985693,4.67,2630.8,2630.7,6.16]
[1749020986039,4.67,2630.8,2630.4,9.786]
[1749020986195,4.69,2630.9,2630.4,9.786]
[1749020986394,4.69,2630.9,2630.5,2.65408]
[1749020986624,4.69,2630.9,2630.4,9.786]
[1749020987131,4.69,2630.9,2630.6,10.0]
[1749020987719,4.69,2630.9,2630.7,10.0]
[1749020988531,4.69,2630.9,2630.6,14.484837]
[1749020988735,4.69,2630.9,2630.7,10.0]
[1749020988937,4.69,2630.9,2630.6,14.484837]
[1749020989112,4.69,2630.9,2630.6,10.0]
[1749020989313,4.69,2630.9,2630.7,10.0]
[1749020989509,4.69,2630.9,2630.4,9.786]
[1749020989850,0.55,2630.8,2630.4,8.199]
[1749020990152,2.0855,2630.8,2630.5,7.747]
[1749020991112,2.0855,2630.8,2630.5,1.587]
[1749020991454,2.0855,2630.8,2630.6,6.16]
[1749020992119,2.0855,2630.8,2630.7,9.787]
[1749020992318,2.82494,2630.8,2630.7,9.787]
[1749020993347,2.82494,2630.8,2630.7,15.947]
[1749020998856,2.82214,2630.8,2630.7,9.787]
[1749020999089,2.82214,2630.8,2630.7,15.947]
[1749021004008,7.49214,2630.8,2630.7,15.947]
[1749021004794,7.49214,2630.8,2630.7,9.787]
[1749021004966,7.49214,2630.8,2630.7,9.785]
[1749021005371,7.49214,2630.8,2630.7,15.945]
[1749021006807,7.49214,2630.8,2630.7,9.785]
[1749021006987,7.49214,2630.8,2630.7,15.946]
[1749021007602,7.49214,2630.8,2630.7,15.947]
[1749021009961,2.1497,2630.6,2630.0,8.201]
[1749021010166,0.55,2630.4,2630.1,1.586]
[1749021010959,0.55,2630.2,2630.0,8.201]
[1749021011283,0.55,2630.2,2630.1,7.747]
[1749021012205,0.55,2630.2,2628.9,0.0769]
[1749021012206,5.22,2630.2,2628.9,0.0769]
[1749021012395,0.55,2629.6,2629.5,8.201]
[1749021012577,0.55,2629.6,2629.5,15.948]
[1749021012913,2.0073,2629.6,2629.5,9.787]
[1749021013063,7.15782637,2629.6,2629.5,15.948]
[1749021018299,7.15782637,2629.6,2629.5,1.586]
[1749021018462,9.9557901,2629.6,2629.5,1.586]
[1749021019102,7.15782637,2629.6,2629.5,1.586]
[1749021019403,7.15782637,2629.6,2629.5,7.748]
[1749021022303,7.15782637,2629.6,2629.5,1.586]
[1749021022513,7.15782637,2629.6,2629.5,7.748]
[1749021024790,7.15782637,2629.6,2629.1,8.203]
[1749021025070,7.15782637,2629.6,2629.5,1.586]
[1749021025367,7.15782637,2629.6,2629.5,7.749]
[1749021026712,1.5153,2629.3,2629.1,1.586]
[1749021027010,3.34796373,2629.2,2629.1,1.586]
[1749021027211,5.3425901,2629.2,2629.1,1.586]
[1749021027366,5.3425901,2629.2,2629.1,7.749]
[1749021028281,5.3425901,2629.2,2629.1,1.586]
[1749021031240,0.55,2629.0,2628.2,8.204]
[1749021031398,2.097,2628.7,2628.6,1.586]
[1749021031598,4.89496373,2628.7,2628.6,1.586]
[1749021031842,0.55,2628.4,2628.2,1.586]
[1749021031981,9.60916373,2628.3,2628.2,1.586]
[1749021033537,5.22,2628.3,2628.2,1.586]
[1749021034537,0.55,2628.3,2628.2,1.586]
[1749021037419,0.55,2628.3,2628.2,7.76]
[1749021045321,5.22,2628.3,2628.2,7.76]
[1749021045659,5.22,2628.3,2628.2,7.7847]
[1749021045950,4.67,2628.3,2628.2,7.7847]
[1749021046744,4.67,2628.3,2628.2,14.994581]
[1749021047142,4.67,2628.6,2628.3,7.949252]
[1749021047345,4.67,2628.6,2628.5,10.0]
[1749021047559,4.67,2628.6,2628.5,0.0247]
[1749021049559,4.67,2628.8,2628.5,0.0247]
[1749021054318,4.67,2628.8,2628.6,10.0]
[1749021054659,4.67,2628.8,2628.7,6.165]
[1749021059468,4.67,2628.8,2628.7,6.164]
[1749021059670,4.67,2628.8,2628.5,0.0247]
[1749021059871,4.67,2628.8,2628.6,6.164]
[1749021061498,4.67,2628.8,2628.7,1.589]
[1749021061638,5.22,2628.8,2628.7,1.589]
[1749021063276,5.22,2628.8,2628.7,7.753]
[1749021066479,5.22,2628.8,2628.6,8.206]
[1749021066678,5.89783,2628.8,2628.7,1.586]
[1749021066883,5.89783,2628.8,2628.7,7.75]
[1749021068642,5.22,2628.8,2628.7,7.75]
[1749021068843,0.55,2628.8,2628.7,7.75]
[1749021071189,0.55,2628.7,2628.6,8.206]
[1749021071406,0.55,2628.7,2628.6,9.792]
[1749021071683,0.55,2628.7,2628.6,15.956]
[1749021071865,2.62061637,2628.7,2628.6,15.956]
[1749021072068,7.29061637,2628.7,2628.6,9.792]
[1749021072244,7.29061637,2628.7,2628.6,15.956]
[1749021076001,7.29061637,2628.7,2628.6,8.206]
[1749021076160,7.29061637,2628.7,2628.6,15.958]
[1749021078206,5.16441637,2628.7,2628.6,15.958]
[1749021078407,4.67,2628.7,2628.6,15.958]
[1749021078786,5.22,2628.7,2628.6,15.958]
[1749021078988,5.22,2628.7,2628.6,16.0076]
[1749021086797,5.22,2628.7,2628.6,9.793]
[1749021087033,5.744,2628.7,2628.6,15.958]
[1749021089922,5.744,2628.7,2628.6,8.206]
[1749021090130,7.2473,2628.7,2628.6,9.793]
[1749021090330,7.2473,2628.7,2628.6,15.957]
[1749021091360,7.2473,2628.7,2628.6,15.956]
[1749021094010,7.2473,2628.7,2628.6,9.792]
[1749021094213,7.2473,2628.7,2628.6,15.957]
[1749021095040,4.67,2628.7,2628.6,7.751]
[1749021095342,5.22,2628.7,2628.6,7.751]
[1749021095851,0.55,2628.7,2628.6,7.751]
[1749021099262,0.55,2628.7,2628.1,2.79796373]
[1749021099467,0.55,2628.6,2628.5,8.207]
[1749021100537,0.57,2628.9,2628.5,14.371]
[1749021100745,0.78704,2628.9,2628.5,14.371]
[1749021101525,0.55,2628.7,2628.5,14.371]
[1749021103756,0.55,2628.7,2628.6,1.586]
[1749021106487,4.67,2628.8,2628.6,1.586]
[1749021106632,4.67,2628.8,2628.7,5.32491373]
[1749021107261,4.67,2628.8,2628.7,5.00611473]
[1749021107569,0.02,2628.9,2628.8,10.0]
[1749021107774,0.02,2628.9,2628.8,9.515761]
[1749021108965,0.02,2628.9,2628.8,3.693213]
[1749021112859,0.02,2628.9,2628.8,3.693213]
[1749021113077,0.02,2628.9,2628.8,9.792]
[1749021113372,0.02,2628.9,2628.8,19.792]
[1749021114380,0.02,2628.9,2628.8,25.955]
[1749021114672,0.02,2628.9,2628.8,23.727978]
[1749021115069,0.02,2628.9,2628.8,22.868774]
[1749021116676,0.02,2628.9,2628.8,30.868774]
[1749021116879,0.02,2628.9,2628.8,33.66673773]
[1749021117942,0.02,2628.9,2628.8,27.50373773]
[1749021118151,0.02,2628.9,2628.8,33.66673773]
[1749021118483,0.02,2628.9,2628.8,30.868774]
[1749021124197,0.02,2628.9,2628.8,21.597304]
[1749021124389,0.02,2628.9,2628.8,23.954]
[1749021124710,3.36796373,2628.9,2628.8,8.206]
[1749021124886,4.3211001,2628.9,2628.8,15.954]
[1749021125205,1.52313637,2628.9,2628.8,15.954]
[1749021125406,2.98883637,2628.9,2628.8,15.954]
[1749021126190,5.7868001,2628.9,2628.8,15.954]
[1749021126391,5.7868001,2628.9,2628.8,1.586]
[1749021128292,10.4568001,2628.9,2628.8,1.586]
[1749021130207,6.19313637,2628.9,2628.6,6.163]
[1749021130384,0.55,2628.7,2628.6,6.163]
[1749021134312,5.22,2628.7,2628.6,6.163]
[1749021135216,5.22,2628.7,2628.6,7.749]
[1749021138224,4.67,2628.7,2628.6,7.749]
[1749021138784,5.22,2628.7,2628.6,7.749]
[1749021139090,2.0791,2628.6,2628.4,8.207]
[1749021139316,2.0791,2628.6,2628.5,7.749]
[1749021140183,6.7491,2628.6,2628.5,1.586]
[1749021140618,6.7491,2628.6,2628.5,7.749]
[1749021144325,6.7491,2628.6,2628.5,7.75]
[1749021144484,7.75620637,2628.6,2628.5,1.586]
[1749021145702,7.75620637,2628.6,2628.5,7.75]
[1749021146642,7.80090637,2628.6,2628.5,1.586]
[1749021147240,0.55,2628.2,2628.1,8.208]
[1749021147537,10.11376373,2628.2,2628.1,15.958]
[1749021150075,7.3158,2628.2,2628.1,15.958]
[1749021150267,6.7938,2628.2,2628.1,15.958]
[1749021150944,5.22,2628.2,2628.1,15.958]
[1749021153136,5.22,2628.2,2628.1,8.208]
[1749021153337,9.52386373,2628.2,2628.1,15.958]
[1749021154059,9.52386373,2628.2,2628.1,9.794]
[1749021154250,10.4762501,2628.2,2628.1,9.794]
[1749021154450,10.4762501,2628.2,2628.1,15.958]
[1749021155475,10.4762501,2628.2,2628.1,9.794]
[1749021155779,10.4762501,2628.2,2628.1,15.958]
[1749021157871,10.4762501,2628.2,2628.1,15.959]
[1749021161672,10.4762501,2628.2,2628.1,1.586]
[1749021162965,10.4762501,2628.2,2628.1,7.751]
[1749021170489,5.8062501,2628.2,2628.1,7.751]
[1749021172388,5.2562501,2628.2,2628.1,7.751]
[1749021172549,4.85386373,2628.2,2628.1,7.751]
[1749021175985,4.30386373,2628.2,2628.1,7.751]
[1749021176285,4.85386373,2628.2,2628.1,1.586]
[1749021180773,0.55,2628.2,2628.1,1.586]
[1749021180970,0.55,2628.1,2627.6,8.21]
[1749021181208,0.55,2627.9,2627.7,7.751]
[1749021181409,4.67,2627.8,2627.7,7.751]
[1749021182212,5.22,2627.8,2627.7,7.75]
[1749021182881,5.22,2627.8,2627.7,1.586]
[1749021183081,5.22,2627.8,2627.7,7.75]
[1749021184295,5.22,2627.8,2627.7,7.751]
[1749021184694,5.79215795,2627.8,2627.7,7.75]
[1749021184895,0.55,2627.7,2627.6,8.21]
[1749021185070,0.55,2627.7,2627.6,15.96]
[1749021185319,5.22,2627.7,2627.6,9.796]
[1749021185522,6.23814217,2627.7,2627.6,15.96]
[1749021185737,7.82944217,2627.7,2627.6,9.796]
[1749021187198,6.23814217,2627.7,2627.6,9.796]
[1749021187398,7.78004217,2627.7,2627.6,9.796]
[1749021188219,6.23814217,2627.7,2627.6,9.796]
[1749021192114,5.22,2627.7,2627.6,9.796]
[1749021192521,5.22,2627.7,2627.6,1.586]
[1749021193704,5.22,2627.7,2627.6,7.751]
[1749021213084,5.22,2627.7,2627.6,1.586]
[1749021213240,5.22,2627.7,2627.6,7.75]
[1749021217480,6.02179637,2627.7,2627.6,7.75]
[1749021219690,6.02179637,2627.7,2627.6,7.75]
[1749021222385,5.22,2627.7,2627.6,7.75]
[1749021222745,5.22,2627.7,2627.6,1.585]
[1749021224059,5.22,2627.7,2627.6,7.749]
[1749021234511,5.22,2627.7,2627.6,7.748]
[1749021235649,4.67,2627.7,2627.6,7.748]
[1749021237634,4.67,2627.7,2627.6,11.798626]
[1749021239467,0.55,2627.4,2626.2,1.585]
[1749021239595,0.55,2626.5,2626.2,7.802]
[1749021239796,0.55,2626.5,2626.2,1.585]
[1749021240000,0.55,2626.5,2626.3,6.217]
[1749021240248,0.55,2626.7,2626.3,6.217]
[1749021240451,0.55,2626.9,2626.3,0.7822]
[1749021240739,0.55,2626.9,2626.4,7.801]
[1749021241314,0.55,2626.9,2626.1,0.02]
[1749021241514,0.55,2626.7,2626.5,7.801]
[1749021242139,0.55,2626.7,2626.6,7.8]
[1749021243945,2.79796373,2627.0,2626.6,7.8]
[1749021244149,0.55,2626.9,2626.6,7.8]
[1749021244729,0.55,2627.1,2626.7,8.212]
[1749021244912,0.55,2626.9,2626.7,8.212]
[1749021249755,4.67,2627.0,2626.7,8.212]
[1749021251874,3.34796373,2626.8,2626.7,8.212]
[1749021252074,4.1497601,2626.8,2626.7,16.034]
[1749021252364,3.34796373,2626.8,2626.7,9.825]
[1749021252659,3.34796373,2626.8,2626.7,16.034]
[1749021254771,0.55,2626.7,2626.5,8.212]